[Event "72nd RUS-ch Higher League 2019"]
[Site "Yaroslavl"]
[Date "2019.07.01"]
[Round "5.18"]
[White "Truskavetsky, Alexandr"]
[Black "Romanov, Evgeny"]
[Result "1/2-1/2"]
[ECO "D20"]
[WhiteElo "2398"]
[BlackElo "2577"]
[Annotator "ChessBase"]
[PlyCount "90"]
[EventDate "2019.06.27"]
[EventType "swiss"]
[EventCountry "RUS"]
[SourceTitle "playchess.com"]
[Source "ChessBase"]
[SourceQuality "1"]
[TimeControl "40/5400+30:1800+30"]

1. d4 {[%emt 0:02:40]} d5 {[%emt 0:01:30]} 2. c4 {[%emt 0:00:15]} dxc4 {[%emt 0:00:19]} 3. e3 {[%emt 0:00:33]} e5 {[%emt 0:05:20]} 4. Bxc4 {[%emt 0:00:53]} exd4 {[%emt 0:00:08]} 5. exd4 {[%emt 0:00:05]} Nf6 {[%emt 0:00:05]} 6. Qb3 {[%emt 0:00:28]} Qe7+ {[%emt 0:00:22]} 7. Ne2 {[%emt 0:00:08]} Qb4+ {[%emt 0:05:31]} 8. Nbc3 {[%emt 0:05:00]} Qxb3 {[%emt 0:00:12]} 9. Bxb3 {[%emt 0:00:05]} Be6 {[%emt 0:01:39]} 10. Bxe6 {[%emt 0:29:25]} fxe6 {[%emt 0:00:07]} 11. Bf4 {[%emt 0:01:39]} c6 {[%emt 0:04:52]} 12. O-O-O {[%emt 0:08:06]} Nbd7 {[%emt 0:00:48]} 13. Rhe1 {[%emt 0:00:32]} Bb4 {[%emt 0:00:55]} 14. a3 {[%emt 0:01:38]} Ba5 {[%emt 0:01:27]} 15. b4 {[%emt 0:03:36]} Bb6 {[%emt 0:00:48]} 16. Ng3 {[%emt 0:03:25]} O-O {[%emt 0:07:02]} 17. Bd6 {[%emt 0:16:25]} Rfe8 {[%emt 0:02:09]} 18. Nge4 {[%emt 0:02:59]} a5 {[%emt 0:01:39]} 19. Kb2 {[%emt 0:04:24]} axb4 {[%emt 0:19:03]} 20. axb4 {[%emt 0:00:09]} Nxe4 {[%emt 0:00:12]} 21. Nxe4 {[%emt 0:00:10]} Ra4 {[%emt 0:00:21]} 22. Kb3 {[%emt 0:04:43]} Rea8 {[%emt 0:01:41]} 23. Nc3 {[%emt 0:00:40]} Ra3+ {[%emt 0:00:28]} 24. Kc2 {[%emt 0:03:46]} Kf7 {[%emt 0:06:25]} 25. b5 {[%emt 0:02:19]} R3a7 {[%emt 0:02:42]} 26. bxc6 {[%emt 0:01:39]} bxc6 {[%emt 0:00:06]} 27. Ne4 {[%emt 0:01:06]} Ra2+ {[%emt 0:03:08]} 28. Kb3 {[%emt 0:00:24]} R2a5 {[%emt 0:03:23]} 29. Bb4 {[%emt 0:00:47]} Rd5 {[%emt 0:00:19]} 30. Nd6+ {[%emt 0:01:45]} Kg8 {[%emt 0:04:31]} 31. Rxe6 {[%emt 0:02:51]} Bxd4 {[%emt 0:08:17]} 32. Ne4 {[%emt 0:00:51]} c5 {[%emt 0:05:31]} 33. Bxc5 {[%emt 0:01:40]} Nxc5+ {[%emt 0:07:38]} 34. Nxc5 {[%emt 0:00:07]} Rxc5 {[%emt 0:02:21]} 35. Rxd4 {[%emt 0:00:06]} Rb8+ {[%emt 0:00:04]} 36. Rb4 {[%emt 0:00:07]} Rxb4+ {[%emt 0:00:07]} 37. Kxb4 {[%emt 0:00:02]} Rc2 {[%emt 0:00:05]} 38. Re3 {[%emt 0:00:21]} Rxf2 {[%emt 0:00:06]} 39. Rg3 {[%emt 0:00:09]} h5 {[%emt 0:04:03]} 40. Kc3 {[%emt 0:00:00]} Kh7 {[%emt 0:00:00]} 41. Rg5 {[%emt 0:06:27]} h4 {[%emt 0:05:22]} 42. h3 {[%emt 0:03:59]} Rf4 {[%emt 0:02:54]} 43. Kd3 {[%emt 0:00:54]} Kh6 {[%emt 0:00:10]} 44. Re5 {[%emt 0:00:31]} g5 {[%emt 0:01:04]} 45. Ke3 {[%emt 0:00:15]} Rf6 {[%emt 0:01:47]} 1/2-1/2

[Event "72nd RUS-ch Higher League 2019"]
[Site "Yaroslavl"]
[Date "2019.07.01"]
[Round "5.19"]
[White "Rozum, Ivan"]
[Black "Drygalov, Andrey"]
[Result "1-0"]
[ECO "A06"]
[WhiteElo "2572"]
[BlackElo "2494"]
[Annotator "ChessBase"]
[PlyCount "117"]
[EventDate "2019.06.27"]
[EventType "swiss"]
[EventCountry "RUS"]
[SourceTitle "playchess.com"]
[Source "ChessBase"]
[SourceQuality "1"]
[TimeControl "40/5400+30:1800+30"]

1. Nf3 {[%emt 0:01:56]} d5 {[%emt 0:00:00]} 2. e3 {[%emt 0:00:43]} Nf6 {[%emt 0:01:01]} 3. c4 {[%emt 0:00:06]} e6 {[%emt 0:00:08]} 4. b3 {[%emt 0:00:19]} c6 {[%emt 0:00:50]} 5. Bb2 {[%emt 0:00:05]} Nbd7 {[%emt 0:00:10]} 6. d4 {[%emt 0:04:15]} b6 {[%emt 0:05:44]} 7. Bd3 {[%emt 0:04:27]} Bb7 {[%emt 0:03:21]} 8. Nc3 {[%emt 0:00:33]} Bd6 {[%emt 0:02:50]} 9. O-O {[%emt 0:00:45]} O-O {[%emt 0:01:50]} 10. Qc2 {[%emt 0:03:22]} Qe7 {[%emt 0:04:28]} 11. Rfe1 {[%emt 0:02:22]} Rac8 {[%emt 0:05:20]} 12. e4 {[%emt 0:03:03]} dxc4 {[%emt 0:00:34]} 13. Bxc4 {[%emt 0:01:29]} e5 {[%emt 0:01:16]} 14. Rad1 {[%emt 0:00:48]} Bb8 {[%emt 0:21:01]} 15. g3 {[%emt 0:06:12]} b5 {[%emt 0:05:48]} 16. Bf1 {[%emt 0:00:31]} Rfe8 {[%emt 0:00:49]} 17. Bg2 {[%emt 0:02:53]} a6 {[%emt 0:04:28]} 18. h3 {[%emt 0:09:45]} c5 {[%emt 0:06:20]} 19. dxe5 {[%emt 0:01:38]} Nxe5 {[%emt 0:00:15]} 20. Nxe5 {[%emt 0:08:11]} Bxe5 {[%emt 0:00:07]} 21. Nd5 {[%emt 0:04:20]} Bxd5 {[%emt 0:01:58]} 22. exd5 {[%emt 0:00:30]} Qd6 {[%emt 0:01:47]} 23. Bxe5 {[%emt 0:00:37]} Rxe5 {[%emt 0:00:04]} 24. Rxe5 {[%emt 0:00:04]} Qxe5 {[%emt 0:00:01]} 25. d6 {[%emt 0:01:31]} Rd8 {[%emt 0:01:59]} 26. Qd3 {[%emt 0:04:27]} Ne8 {[%emt 0:11:18]} 27. d7 {[%emt 0:02:03]} Nf6 {[%emt 0:00:04]} 28. Bc6 {[%emt 0:08:24]} Qc7 {[%emt 0:01:17]} 29. Qf3 {[%emt 0:05:21]} Kf8 {[%emt 0:00:28]} 30. a4 {[%emt 0:00:50]} b4 {[%emt 0:03:04]} 31. a5 {[%emt 0:02:48]} c4 {[%emt 0:02:53]} 32. bxc4 {[%emt 0:00:43]} b3 {[%emt 0:02:31]} 33. Ba4 {[%emt 0:06:48]} Qxc4 {[%emt 0:00:36]} 34. Bxb3 {[%emt 0:00:11]} Qb4 {[%emt 0:00:52]} 35. Ba2 {[%emt 0:05:43]} Qa4 {[%emt 0:05:02]} 36. Rd2 {[%emt 0:00:13]} Qb4 {[%emt 0:05:11]} 37. Rc2 {[%emt 0:03:28]} Rxd7 {[%emt 0:02:17]} 38. Qa8+ {[%emt 0:01:56]} Ne8 {[%emt 0:00:05]} 39. Re2 {[%emt 0:00:41]} Re7 {[%emt 0:01:04]} 40. Rxe7 {[%emt 0:00:00]} Qxe7 {[%emt 0:00:00]} 41. Qxa6 {[%emt 0:06:52]} Qe1+ {[%emt 0:00:18]} 42. Kg2 {[%emt 0:00:03]} Qe4+ {[%emt 0:00:08]} 43. Kh2 {[%emt 0:00:03]} Qc2 {[%emt 0:03:52]} 44. Bd5 {[%emt 0:00:28]} Qxf2+ {[%emt 0:00:45]} 45. Bg2 {[%emt 0:00:04]} Qc5 {[%emt 0:02:06]} 46. Qb6 {[%emt 0:10:01]} Qe7 {[%emt 0:01:15]} 47. a6 {[%emt 0:00:50]} g6 {[%emt 0:00:10]} 48. a7 {[%emt 0:00:15]} Nc7 {[%emt 0:00:03]} 49. Qb7 {[%emt 0:01:35]} Qd6 {[%emt 0:01:49]} 50. Bd5 {[%emt 0:04:22]} Qe7 {[%emt 0:01:58]} 51. a8=Q+ {[%emt 0:02:08]} Nxa8 {[%emt 0:00:05]} 52. Qxe7+ {[%emt 0:00:08]} Kxe7 {[%emt 0:00:05]} 53. Bxa8 {[%emt 0:00:02]} f5 {[%emt 0:04:19]} 54. Kg2 {[%emt 0:00:28]} Kf6 {[%emt 0:00:56]} 55. Bf3 {[%emt 0:02:38]} h5 {[%emt 0:01:45]} 56. Kf2 {[%emt 0:01:02]} h4 {[%emt 0:00:40]} 57. g4 {[%emt 0:00:22]} Kg5 {[%emt 0:04:55]} 58. Ke3 {[%emt 0:00:59]} fxg4 {[%emt 0:01:04]} 59. hxg4 {[%emt 0:00:15]} 1-0

[Event "72nd RUS-ch Higher League 2019"]
[Site "Yaroslavl"]
[Date "2019.07.01"]
[Round "5.20"]
[White "Eraschenkov, Denis"]
[Black "Kobalia, Mikhail"]
[Result "0-1"]
[ECO "B50"]
[WhiteElo "2379"]
[BlackElo "2608"]
[Annotator "ChessBase"]
[PlyCount "156"]
[EventDate "2019.06.27"]
[EventType "swiss"]
[EventCountry "RUS"]
[SourceTitle "playchess.com"]
[Source "ChessBase"]
[SourceQuality "1"]
[TimeControl "40/5400+30:1800+30"]

1. e4 {[%emt 0:05:44]} c5 {[%emt 0:00:54]} 2. Nf3 {[%emt 0:00:12]} d6 {[%emt 0:00:06]} 3. c3 {[%emt 0:00:08]} Nf6 {[%emt 0:00:23]} 4. h3 {[%emt 0:00:14]} Nbd7 {[%emt 0:02:29]} 5. Bd3 {[%emt 0:00:41]} b6 {[%emt 0:02:31]} 6. O-O {[%emt 0:02:36]} Bb7 {[%emt 0:00:03]} 7. Re1 {[%emt 0:00:38]} Rc8 {[%emt 0:03:24]} 8. Bc2 {[%emt 0:03:17]} Qc7 {[%emt 0:00:27]} 9. a4 {[%emt 0:07:11]} a6 {[%emt 0:07:06]} 10. d3 {[%emt 0:16:59]} e6 {[%emt 0:02:46]} 11. Bg5 {[%emt 0:06:49]} Be7 {[%emt 0:00:34]} 12. Nbd2 {[%emt 0:00:10]} O-O {[%emt 0:02:40]} 13. Nf1 {[%emt 0:02:03]} Ne5 {[%emt 0:02:40]} 14. Rc1 {[%emt 0:02:18]} Qd7 {[%emt 0:13:46]} 15. N1d2 {[%emt 0:09:04]} Nxf3+ {[%emt 0:14:18]} 16. Nxf3 {[%emt 0:00:33]} Rfd8 {[%emt 0:05:18]} 17. Qe2 {[%emt 0:02:17]} Bc6 {[%emt 0:02:36]} 18. b3 {[%emt 0:00:51]} h6 {[%emt 0:01:44]} 19. Bf4 {[%emt 0:03:10]} Qb7 {[%emt 0:05:51]} 20. Rcd1 {[%emt 0:03:05]} e5 {[%emt 0:04:15]} 21. Bc1 {[%emt 0:01:53]} Re8 {[%emt 0:00:28]} 22. Nh4 {[%emt 0:11:42]} Bf8 {[%emt 0:07:44]} 23. Qf3 {[%emt 0:01:38]} Nh7 {[%emt 0:00:04]} 24. Qg3 {[%emt 0:01:04]} Kh8 {[%emt 0:00:30]} 25. Nf5 {[%emt 0:00:52]} Bd7 {[%emt 0:00:40]} 26. Ne3 {[%emt 0:07:45]} Nf6 {[%emt 0:02:25]} 27. Qf3 {[%emt 0:03:44]} Rc7 {[%emt 0:01:29]} 28. Rd2 {[%emt 0:00:52]} b5 {[%emt 0:01:07]} 29. Rde2 {[%emt 0:02:23]} Be6 {[%emt 0:01:00]} 30. c4 {[%emt 0:01:04]} bxa4 {[%emt 0:02:39]} 31. bxa4 {[%emt 0:00:05]} Qc8 32. Bd2 {[%emt 0:01:10]} Rb7 {[%emt 0:02:21]} 33. Bc3 {[%emt 0:00:14]} Ng8 {[%emt 0:01:14]} 34. a5 {[%emt 0:01:14]} Ne7 {[%emt 0:00:10]} 35. Ba4 {[%emt 0:00:33]} Rd8 {[%emt 0:00:16]} 36. Nd5 {[%emt 0:01:13]} Nxd5 {[%emt 0:01:25]} 37. exd5 {[%emt 0:00:20]} Bf5 {[%emt 0:03:12]} 38. Qg3 {[%emt 0:00:25]} Bg6 {[%emt 0:03:22]} 39. f4 {[%emt 0:00:56]} Qf5 {[%emt 0:03:14]} 40. fxe5 {[%emt 0:00:00]} Qxd3 {[%emt 0:00:00]} 41. Re3 Qxc4 42. Bc6 {[%emt 0:12:41]} Rb3 {[%emt 0:03:33]} 43. e6 {[%emt 0:08:18]} Kh7 {[%emt 0:00:56]} 44. exf7 {[%emt 0:07:28]} Bxf7 {[%emt 0:01:26]} 45. Rf1 {[%emt 0:00:26]} Rxc3 {[%emt 0:12:51]} 46. Rxc3 {[%emt 0:00:15]} Qd4+ {[%emt 0:00:01]} 47. Qe3 {[%emt 0:01:38]} Bg6 {[%emt 0:01:31]} 48. Qxd4 {[%emt 0:01:38]} cxd4 {[%emt 0:00:42]} 49. Rb3 {[%emt 0:00:19]} Be7 {[%emt 0:04:57]} 50. Rb6 {[%emt 0:01:03]} Bc2 {[%emt 0:01:25]} 51. Rb4 {[%emt 0:03:26]} d3 {[%emt 0:00:34]} 52. h4 {[%emt 0:00:54]} Bf6 {[%emt 0:01:36]} 53. Rc4 {[%emt 0:00:24]} Rb8 54. Kf2 {[%emt 0:00:30]} Bb3 {[%emt 0:03:27]} 55. Re4 {[%emt 0:00:41]} Bc3 {[%emt 0:01:01]} 56. Ke3 {[%emt 0:00:27]} d2 {[%emt 0:00:09]} 57. Ba4 {[%emt 0:00:35]} Bxd5 58. Re7 {[%emt 0:00:18]} Rb2 {[%emt 0:03:01]} 59. h5 Bc4 60. Rf8 {[%emt 0:01:09]} Bb3 {[%emt 0:02:16]} 61. Bxb3 {[%emt 0:00:27]} Rxb3 {[%emt 0:00:02]} 62. Ree8 {[%emt 0:00:34]} g6 {[%emt 0:01:06]} 63. Rf7+ {[%emt 0:00:31]} Bg7+ {[%emt 0:00:02]} 64. Kxd2 {[%emt 0:00:07]} gxh5 {[%emt 0:00:03]} 65. Ra8 {[%emt 0:00:56]} Rb2+ {[%emt 0:02:29]} 66. Ke3 {[%emt 0:00:07]} Rxg2 {[%emt 0:00:01]} 67. Rxa6 {[%emt 0:00:06]} Kg6 {[%emt 0:00:07]} 68. Rb7 {[%emt 0:00:38]} Be5 {[%emt 0:00:04]} 69. Rc6 {[%emt 0:00:11]} Ra2 {[%emt 0:00:09]} 70. a6 {[%emt 0:00:19]} h4 71. Rbb6 h3 {[%emt 0:00:47]} 72. Rxd6+ {[%emt 0:01:48]} Bxd6 {[%emt 0:00:00]} 73. Rxd6+ {[%emt 0:00:07]} Kg5 {[%emt 0:00:01]} 74. Kf3 {[%emt 0:01:02]} h2 {[%emt 0:00:01]} 75. Rd1 {[%emt 0:00:18]} Kh4 76. a7 {[%emt 0:00:50]} Kh3 {[%emt 0:00:03]} 77. Kf4 {[%emt 0:00:30]} Rxa7 {[%emt 0:00:37]} 78. Rd3+ {[%emt 0:00:24]} Kh4 {[%emt 0:00:10]} 0-1

[Event "72nd RUS-ch Higher League 2019"]
[Site "Yaroslavl"]
[Date "2019.07.01"]
[Round "5.21"]
[White "Bigaliev, Renat"]
[Black "Triapishko, Alexandr"]
[Result "1/2-1/2"]
[ECO "D70"]
[WhiteElo "2427"]
[BlackElo "2512"]
[Annotator "ChessBase"]
[PlyCount "56"]
[EventDate "2019.06.27"]
[EventType "swiss"]
[EventCountry "RUS"]
[SourceTitle "playchess.com"]
[Source "ChessBase"]
[SourceQuality "1"]
[TimeControl "40/5400+30:1800+30"]

1. d4 {[%emt 0:00:00]} Nf6 {[%emt 0:01:31]} 2. c4 {[%emt 0:00:00]} g6 {[%emt 0:00:53]} 3. f3 {[%emt 0:00:30]} d5 {[%emt 0:04:12]} 4. cxd5 {[%emt 0:00:13]} Nxd5 {[%emt 0:00:11]} 5. e4 {[%emt 0:00:21]} Nb6 {[%emt 0:00:23]} 6. Nc3 {[%emt 0:00:54]} Bg7 {[%emt 0:02:22]} 7. Be3 {[%emt 0:00:12]} O-O {[%emt 0:01:42]} 8. Qd2 {[%emt 0:01:34]} e5 {[%emt 0:06:09]} 9. d5 {[%emt 0:04:21]} c6 {[%emt 0:05:03]} 10. h4 {[%emt 0:06:33]} cxd5 {[%emt 0:05:17]} 11. exd5 {[%emt 0:00:10]} N8d7 {[%emt 0:01:47]} 12. h5 {[%emt 0:01:32]} Nf6 {[%emt 0:02:10]} 13. hxg6 {[%emt 0:00:53]} fxg6 {[%emt 0:01:05]} 14. O-O-O {[%emt 0:02:13]} Bd7 {[%emt 0:04:06]} 15. Kb1 {[%emt 0:11:53]} Rc8 {[%emt 0:04:14]} 16. d6 {[%emt 0:02:33]} e4 {[%emt 0:03:49]} 17. Bh6 {[%emt 0:05:20]} Na4 {[%emt 0:06:59]} 18. Nd5 {[%emt 0:03:35]} Nxd5 {[%emt 0:07:31]} 19. Qxd5+ {[%emt 0:00:28]} Kh8 {[%emt 0:01:28]} 20. Bxg7+ {[%emt 0:00:29]} Kxg7 {[%emt 0:00:08]} 21. Bb5 {[%emt 0:12:20]} Nxb2 {[%emt 0:08:54]} 22. Kxb2 {[%emt 0:03:58]} Qb6 {[%emt 0:02:40]} 23. Qe5+ {[%emt 0:04:45]} Kg8 {[%emt 0:01:32]} 24. Qd5+ {[%emt 0:01:11]} Kg7 {[%emt 0:00:30]} 25. Qe5+ {[%emt 0:01:07]} Kg8 {[%emt 0:00:13]} 26. Qd5+ {[%emt 0:00:35]} Kg7 {[%emt 0:00:14]} 27. Qe5+ {[%emt 0:00:41]} Kg8 {[%emt 0:00:08]} 28. Qd5+ {[%emt 0:00:07]} Kg7 {[%emt 0:00:05]} 1/2-1/2

[Event "72nd RUS-ch Higher League 2019"]
[Site "Yaroslavl"]
[Date "2019.07.01"]
[Round "5.22"]
[White "Levin, Evgeny A."]
[Black "Vlasenko, Miroslav"]
[Result "1/2-1/2"]
[ECO "A84"]
[WhiteElo "2504"]
[BlackElo "2417"]
[Annotator "ChessBase"]
[PlyCount "83"]
[EventDate "2019.06.27"]
[EventType "swiss"]
[EventCountry "RUS"]
[SourceTitle "playchess.com"]
[Source "ChessBase"]
[SourceQuality "1"]
[TimeControl "40/5400+30:1800+30"]

1. d4 {[%emt 0:00:00]} e6 {[%emt 0:00:00]} 2. c4 {[%emt 0:00:00]} f5 {[%emt 0:00:00]} 3. Nc3 {[%emt 0:00:09]} Nf6 {[%emt 0:00:00]} 4. e3 {[%emt 0:00:54]} d5 {[%emt 0:00:00]} 5. Nf3 {[%emt 0:01:47]} c6 {[%emt 0:00:57]} 6. Bd3 {[%emt 0:02:02]} Bd6 {[%emt 0:02:39]} 7. O-O {[%emt 0:00:45]} Ne4 {[%emt 0:01:54]} 8. Ne2 {[%emt 0:01:08]} Nd7 {[%emt 0:02:33]} 9. b3 {[%emt 0:04:49]} O-O {[%emt 0:03:01]} 10. Bb2 {[%emt 0:01:09]} Qf6 {[%emt 0:05:03]} 11. Nf4 {[%emt 0:01:12]} Qh6 {[%emt 0:22:02]} 12. Ne5 {[%emt 0:08:34]} Nxe5 {[%emt 0:01:26]} 13. dxe5 {[%emt 0:00:07]} Be7 {[%emt 0:01:24]} 14. g3 {[%emt 0:25:11]} Bd7 {[%emt 0:04:56]} 15. f3 {[%emt 0:04:04]} Nc5 {[%emt 0:02:35]} 16. h4 {[%emt 0:00:36]} a5 {[%emt 0:07:01]} 17. Be2 {[%emt 0:07:42]} Rf7 {[%emt 0:07:56]} 18. Kf2 {[%emt 0:03:29]} g6 {[%emt 0:09:19]} 19. Rc1 {[%emt 0:10:37]} Qf8 {[%emt 0:02:23]} 20. Qd4 {[%emt 0:11:08]} Rg7 {[%emt 0:06:30]} 21. Rh1 {[%emt 0:00:46]} b6 {[%emt 0:09:24]} 22. Rcg1 {[%emt 0:04:41]} h5 {[%emt 0:01:18]} 23. Rc1 {[%emt 0:01:55]} Kh7 {[%emt 0:01:09]} 24. cxd5 {[%emt 0:05:13]} cxd5 {[%emt 0:00:13]} 25. Bd1 {[%emt 0:01:35]} Qb8 {[%emt 0:02:53]} 26. Bc2 {[%emt 0:00:28]} a4 {[%emt 0:03:11]} 27. b4 {[%emt 0:00:49]} a3 {[%emt 0:00:33]} 28. Bc3 {[%emt 0:02:26]} Na4 {[%emt 0:01:52]} 29. Bxa4 {[%emt 0:00:09]} Rxa4 {[%emt 0:00:55]} 30. Nxd5 {[%emt 0:00:24]} Bc6 {[%emt 0:00:43]} 31. Nxe7 {[%emt 0:01:08]} Rxe7 {[%emt 0:00:10]} 32. Rhd1 {[%emt 0:00:29]} Bd5 {[%emt 0:00:42]} 33. Rd2 {[%emt 0:00:28]} Rc7 {[%emt 0:00:31]} 34. Rdc2 {[%emt 0:00:30]} Rc4 {[%emt 0:00:38]} 35. Qd3 {[%emt 0:00:32]} b5 {[%emt 0:00:33]} 36. Bd4 {[%emt 0:00:22]} Qb7 {[%emt 0:00:16]} 37. Bc5 {[%emt 0:00:29]} Rxc2+ {[%emt 0:01:07]} 38. Rxc2 {[%emt 0:00:17]} Bxf3 {[%emt 0:00:13]} 39. Rd2 {[%emt 0:00:52]} Bd5 {[%emt 0:00:29]} 40. Qd4 {[%emt 0:00:00]} Ra8 {[%emt 0:00:00]} 41. Qf4 {[%emt 0:03:28]} Qc7 {[%emt 0:21:28]} 42. Ke1 {[%emt 0:08:52]} 1/2-1/2

[Event "72nd RUS-ch Higher League 2019"]
[Site "Yaroslavl"]
[Date "2019.07.01"]
[Round "5.23"]
[White "Murzin, Volodar"]
[Black "Nozdrachev, Vladislav"]
[Result "1-0"]
[ECO "C84"]
[WhiteElo "2418"]
[BlackElo "2481"]
[Annotator "ChessBase"]
[PlyCount "67"]
[EventDate "2019.06.27"]
[EventType "swiss"]
[EventCountry "RUS"]
[SourceTitle "playchess.com"]
[Source "ChessBase"]
[SourceQuality "1"]
[TimeControl "40/5400+30:1800+30"]

1. e4 {[%emt 0:00:00]} e5 {[%emt 0:00:00]} 2. Nf3 {[%emt 0:00:00]} Nc6 {[%emt 0:00:00]} 3. Bb5 {[%emt 0:00:00]} a6 {[%emt 0:00:00]} 4. Ba4 {[%emt 0:00:00]} Nf6 {[%emt 0:00:00]} 5. O-O {[%emt 0:00:00]} Be7 {[%emt 0:00:00]} 6. d3 {[%emt 0:00:12]} d6 {[%emt 0:00:00]} 7. c3 {[%emt 0:01:39]} O-O {[%emt 0:00:00]} 8. Nbd2 {[%emt 0:00:35]} Re8 {[%emt 0:00:35]} 9. Re1 {[%emt 0:00:23]} Bf8 {[%emt 0:00:26]} 10. Nf1 {[%emt 0:01:06]} b5 {[%emt 0:00:32]} 11. Bc2 {[%emt 0:00:22]} Bb7 {[%emt 0:00:05]} 12. Ng3 {[%emt 0:02:07]} g6 {[%emt 0:04:27]} 13. Be3 {[%emt 0:05:12]} h6 {[%emt 0:05:13]} 14. h3 {[%emt 0:00:56]} d5 {[%emt 0:05:39]} 15. Qe2 {[%emt 0:02:10]} Bg7 {[%emt 0:05:42]} 16. a4 {[%emt 0:06:44]} b4 {[%emt 0:04:26]} 17. a5 {[%emt 0:01:30]} bxc3 {[%emt 0:04:36]} 18. bxc3 {[%emt 0:00:11]} d4 {[%emt 0:00:05]} 19. Bd2 {[%emt 0:04:20]} dxc3 {[%emt 0:16:15]} 20. Bxc3 {[%emt 0:00:02]} Nd4 {[%emt 0:00:07]} 21. Bxd4 {[%emt 0:02:30]} exd4 {[%emt 0:00:05]} 22. Bb3 {[%emt 0:02:15]} c5 {[%emt 0:06:37]} 23. Qa2 {[%emt 0:00:41]} Re7 {[%emt 0:00:24]} 24. Rab1 {[%emt 0:09:40]} Bc6 {[%emt 0:04:50]} 25. Nh4 {[%emt 0:03:16]} g5 {[%emt 0:05:25]} 26. Nhf5 {[%emt 0:00:50]} Rc7 {[%emt 0:01:24]} 27. Bc4 {[%emt 0:01:16]} Bb5 {[%emt 0:06:18]} 28. e5 {[%emt 0:02:25]} Bxc4 {[%emt 0:00:39]} 29. Qxc4 {[%emt 0:01:12]} Nd5 {[%emt 0:00:09]} 30. Nh5 {[%emt 0:00:22]} Bh8 {[%emt 0:00:40]} 31. e6 {[%emt 0:00:17]} fxe6 {[%emt 0:05:17]} 32. Rxe6 {[%emt 0:00:03]} Rd7 {[%emt 0:00:06]} 33. Rbe1 {[%emt 0:01:34]} Qxa5 {[%emt 0:01:02]} 34. Ne7+ {[%emt 0:01:25]} 1-0

[Event "72nd RUS-ch Higher League 2019"]
[Site "Yaroslavl"]
[Date "2019.07.01"]
[Round "5.24"]
[White "Yanchenko, Roman"]
[Black "Bimiev, Ahmad"]
[Result "1-0"]
[ECO "D38"]
[WhiteElo "2478"]
[BlackElo "2238"]
[Annotator "ChessBase"]
[PlyCount "59"]
[EventDate "2019.06.27"]
[EventType "swiss"]
[EventCountry "RUS"]
[SourceTitle "playchess.com"]
[Source "ChessBase"]
[SourceQuality "1"]
[TimeControl "40/5400+30:1800+30"]

1. d4 {[%emt 0:00:00]} Nf6 {[%emt 0:00:00]} 2. c4 {[%emt 0:00:00]} e6 {[%emt 0:00:33]} 3. Nf3 {[%emt 0:00:00]} d5 {[%emt 0:00:36]} 4. Nc3 {[%emt 0:00:00]} Bb4 {[%emt 0:00:53]} 5. cxd5 Nxd5 {[%emt 0:06:49]} 6. Bd2 {[%emt 0:08:51]} c5 {[%emt 0:04:01]} 7. Nxd5 {[%emt 0:03:39]} Qxd5 {[%emt 0:01:17]} 8. dxc5 {[%emt 0:05:13]} Bxc5 {[%emt 0:01:19]} 9. Qc2 {[%emt 0:00:31]} Nc6 {[%emt 0:24:33]} 10. e4 {[%emt 0:00:34]} Qd6 {[%emt 0:00:14]} 11. Bb5 {[%emt 0:03:54]} Bd7 {[%emt 0:00:41]} 12. Rc1 {[%emt 0:02:17]} Bb6 {[%emt 0:09:05]} 13. O-O {[%emt 0:01:46]} O-O {[%emt 0:10:27]} 14. Bc3 {[%emt 0:00:04]} Rfd8 {[%emt 0:02:33]} 15. e5 {[%emt 0:03:10]} Qe7 {[%emt 0:00:53]} 16. Bd3 {[%emt 0:00:49]} h6 {[%emt 0:00:10]} 17. a3 {[%emt 0:03:10]} Qe8 {[%emt 0:03:10]} 18. Bh7+ {[%emt 0:03:07]} Kh8 {[%emt 0:00:57]} 19. Be4 {[%emt 0:00:04]} Rab8 {[%emt 0:01:38]} 20. a4 {[%emt 0:04:14]} Rdc8 {[%emt 0:02:53]} 21. Qd2 {[%emt 0:01:40]} Ne7 {[%emt 0:02:18]} 22. a5 {[%emt 0:04:14]} Bd8 {[%emt 0:00:17]} 23. Nd4 {[%emt 0:01:06]} Nd5 {[%emt 0:08:27]} 24. Bxd5 {[%emt 0:00:06]} exd5 {[%emt 0:00:01]} 25. Rce1 {[%emt 0:00:29]} b5 {[%emt 0:01:30]} 26. e6 {[%emt 0:00:33]} fxe6 {[%emt 0:00:39]} 27. Nxe6 {[%emt 0:00:04]} Qg6 {[%emt 0:01:17]} 28. Nf8 {[%emt 0:02:12]} Qd6 {[%emt 0:01:06]} 29. Nxd7 {[%emt 0:00:05]} Qxd7 {[%emt 0:00:10]} 30. Re8+ {[%emt 0:00:06]} 1-0